[Event "*** Titled Tuesday Blitz"]
[Site "Chess.com"]
[Date "2021.03.16"]
[Round "6"]
[White "zmeeed67"]
[Black "CSB7"]
[Result "0-1"]
[WhiteElo "2425"]
[BlackElo "2610"]
[TimeControl "180+1"]
[EndTime "11:07:26 PDT"]
[Termination "CSB7 won by resignation"]

1. d4 {[%clk 0:03:00.9]} 1... d5 {[%clk 0:02:56.3]} 2. c4 {[%clk 0:03:01.4]}
2... c6 {[%clk 0:02:55.9]} 3. Nc3 {[%clk 0:03:01.9]} 3... Nf6 {[%clk 0:02:54.9]}
4. e3 {[%clk 0:03:02.3]} 4... e6 {[%clk 0:02:55.1]} 5. Nf3 {[%clk 0:03:02.4]}
5... Nbd7 {[%clk 0:02:55]} 6. Bd3 {[%clk 0:03:03]} 6... dxc4 {[%clk 0:02:54.8]}
7. Bxc4 {[%clk 0:03:03.9]} 7... b5 {[%clk 0:02:55.3]} 8. Bd3 {[%clk 0:03:04.5]}
8... Bb7 {[%clk 0:02:55.9]} 9. O-O {[%clk 0:03:04.6]} 9... a6 {[%clk 0:02:54.6]}
10. e4 {[%clk 0:03:05]} 10... c5 {[%clk 0:02:50.8]} 11. d5 {[%clk 0:03:05.1]}
11... Qc7 {[%clk 0:02:49.6]} 12. dxe6 {[%clk 0:03:04.9]} 12... fxe6 {[%clk
0:02:49.4]} 13. Ng5 {[%clk 0:03:04.2]} 13... Qb6 {[%clk 0:02:27.6]} 14. Qf3
{[%clk 0:02:53.5]} 14... Ne5 {[%clk 0:02:17.6]} 15. Qh3 {[%clk 0:02:48.1]} 15...
Nxd3 {[%clk 0:02:16.7]} 16. Qxd3 {[%clk 0:02:49]} 16... b4 {[%clk 0:01:18.4]}
17. Ne2 {[%clk 0:02:48.4]} 17... h6 {[%clk 0:00:59.4]} 18. e5 {[%clk 0:01:57]}
18... hxg5 {[%clk 0:00:58.9]} 19. Qg6+ {[%clk 0:01:56.7]} 19... Kd7 {[%clk
0:00:59]} 20. exf6 {[%clk 0:01:42.9]} 20... gxf6 {[%clk 0:00:59.9]} 21. Be3
{[%clk 0:01:23.7]} 21... Be7 {[%clk 0:00:36.5]} 22. Rfd1+ {[%clk 0:01:20.6]}
22... Bd5 {[%clk 0:00:36]} 23. Rac1 {[%clk 0:00:54.5]} 23... Rag8 {[%clk
0:00:24.9]} 24. Qc2 {[%clk 0:00:54.1]} 24... Ke8 {[%clk 0:00:13]} 25. Bxc5
{[%clk 0:00:46]} 25... Bxc5 {[%clk 0:00:11.3]} 26. Qxc5 {[%clk 0:00:46.9]} 26...
Qxc5 {[%clk 0:00:12.2]} 27. Rxc5 {[%clk 0:00:47.8]} 27... Kf7 {[%clk 0:00:10]}
28. Nd4 {[%clk 0:00:29.3]} 28... Bxa2 {[%clk 0:00:07.3]} 29. Ra1 {[%clk
0:00:23.1]} 29... Bd5 {[%clk 0:00:05.5]} 30. Rxa6 {[%clk 0:00:21.4]} 30... Rc8
{[%clk 0:00:04.1]} 31. Raa5 {[%clk 0:00:16.9]} 31... Rxc5 {[%clk 0:00:03.5]} 32.
Rxc5 {[%clk 0:00:17.8]} 32... Ra8 {[%clk 0:00:03.8]} 33. f3 {[%clk 0:00:18.1]}
33... Ra1+ {[%clk 0:00:03.5]} 34. Kf2 {[%clk 0:00:18.5]} 34... Rb1 {[%clk
0:00:03.9]} 35. Rc2 {[%clk 0:00:18.6]} 35... e5 {[%clk 0:00:02.7]} 36. Nf5
{[%clk 0:00:15.6]} 36... Be6 {[%clk 0:00:02.7]} 37. Ne3 {[%clk 0:00:12.2]} 37...
f5 {[%clk 0:00:02.7]} 38. g3 {[%clk 0:00:06]} 38... f4 {[%clk 0:00:02.9]} 39.
gxf4 {[%clk 0:00:02.9]} 39... gxf4 {[%clk 0:00:03.8]} 40. Ng4 {[%clk 0:00:02.1]}
40... Bxg4 {[%clk 0:00:04.2]} 41. fxg4 {[%clk 0:00:03]} 41... e4 {[%clk
0:00:04.9]} 42. Rc4 {[%clk 0:00:02.5]} 42... Rxb2+ {[%clk 0:00:04.9]} 43. Kg1
{[%clk 0:00:03]} 43... Rb1+ {[%clk 0:00:05.2]} 44. Kf2 {[%clk 0:00:02.9]} 44...
Rb2+ {[%clk 0:00:05]} 45. Kg1 {[%clk 0:00:03]} 45... Kg6 {[%clk 0:00:04.5]} 46.
Rxe4 {[%clk 0:00:02.9]} 46... Kg5 {[%clk 0:00:05.1]} 47. h3 {[%clk 0:00:02.6]}
47... b3 {[%clk 0:00:02.8]} 48. Rb4 {[%clk 0:00:02.6]} 48... Kh4 {[%clk
0:00:02.5]} 49. Rxf4 {[%clk 0:00:02]} 49... Kg3 {[%clk 0:00:03]} 50. Rf1 {[%clk
0:00:02.2]} 50... Rc2 {[%clk 0:00:02.6]} 51. Rd1 {[%clk 0:00:01.1]} 51... b2
{[%clk 0:00:02.3]} 52. Rd3+ {[%clk 0:00:01.8]} 52... Kh4 {[%clk 0:00:02.8]} 53.
Rb3 {[%clk 0:00:02.5]} 53... Rc1+ {[%clk 0:00:03.2]} 54. Kg2 {[%clk 0:00:03.3]}
54... b1=Q {[%clk 0:00:04.1]} 55. Rxb1 {[%clk 0:00:03.6]} 55... Rxb1 {[%clk
0:00:05]} 56. Kf3 {[%clk 0:00:04.5]} 56... Rb3+ {[%clk 0:00:05.5]} 57. Ke4
{[%clk 0:00:05.4]} 57... Kg5 {[%clk 0:00:05.7]} 58. h4+ {[%clk 0:00:05.3]} 58...
Kxg4 {[%clk 0:00:05.8]} 0-1

[Event "*** Titled Tuesday Blitz"]
[Site "Chess.com"]
[Date "2021.03.16"]
[Round "6"]
[White "Abund"]
[Black "rynos0411"]
[Result "1-0"]
[WhiteElo "2692"]
[BlackElo "2502"]
[TimeControl "180+1"]
[EndTime "11:07:28 PDT"]
[Termination "Abund won by resignation"]

1. e4 {[%clk 0:03:00.9]} 1... c6 {[%clk 0:02:58.8]} 2. d4 {[%clk 0:02:55.3]}
2... d5 {[%clk 0:02:57.8]} 3. Nd2 {[%clk 0:02:55.5]} 3... dxe4 {[%clk
0:02:57.4]} 4. Nxe4 {[%clk 0:02:55.2]} 4... g6 {[%clk 0:02:58.3]} 5. Nf3 {[%clk
0:02:50.5]} 5... Bg7 {[%clk 0:02:56.6]} 6. Be2 {[%clk 0:02:47.9]} 6... Nf6
{[%clk 0:02:51.6]} 7. Ng3 {[%clk 0:02:47.3]} 7... h5 {[%clk 0:02:47.9]} 8. Bg5
{[%clk 0:02:41.2]} 8... Bg4 {[%clk 0:02:35.2]} 9. h3 {[%clk 0:02:33.5]} 9... Be6
{[%clk 0:02:11.6]} 10. O-O {[%clk 0:02:27.1]} 10... Nbd7 {[%clk 0:01:41.1]} 11.
c4 {[%clk 0:02:26]} 11... Nb6 {[%clk 0:01:36.9]} 12. Qc2 {[%clk 0:02:24.4]}
12... O-O {[%clk 0:01:33.7]} 13. Rad1 {[%clk 0:02:21.7]} 13... Rc8 {[%clk
0:01:27.9]} 14. Be3 {[%clk 0:02:16.7]} 14... Qc7 {[%clk 0:01:21.8]} 15. Ng5
{[%clk 0:02:13.4]} 15... Bd7 {[%clk 0:01:17.7]} 16. b3 {[%clk 0:02:03.2]} 16...
Rfd8 {[%clk 0:01:11.5]} 17. Qc1 {[%clk 0:01:58]} 17... e5 {[%clk 0:01:01.2]} 18.
dxe5 {[%clk 0:01:55.5]} 18... Qxe5 {[%clk 0:00:55.9]} 19. Bf4 {[%clk 0:01:55.3]}
19... Qa5 {[%clk 0:00:56.5]} 20. Rd2 {[%clk 0:01:46.1]} 20... h4 {[%clk
0:00:46.8]} 21. Nh1 {[%clk 0:01:27]} 21... Bf5 {[%clk 0:00:44.8]} 22. Rfd1
{[%clk 0:01:25.8]} 22... Rxd2 {[%clk 0:00:37]} 23. Qxd2 {[%clk 0:01:24.8]} 23...
Qxd2 {[%clk 0:00:30.9]} 24. Rxd2 {[%clk 0:01:25.7]} 24... Nbd7 {[%clk
0:00:30.9]} 25. Nf3 {[%clk 0:01:19.2]} 25... Ne4 {[%clk 0:00:26.4]} 26. Rd1
{[%clk 0:01:16]} 26... Bf6 {[%clk 0:00:18.6]} 27. Bf1 {[%clk 0:00:58.6]} 27...
Nf8 {[%clk 0:00:16.5]} 28. g4 {[%clk 0:00:57.5]} 28... hxg3 {[%clk 0:00:16.2]}
29. Nxg3 {[%clk 0:00:57.4]} 29... Ne6 {[%clk 0:00:16.8]} 30. Be3 {[%clk
0:00:53.3]} 30... Nxg3 {[%clk 0:00:14.9]} 31. fxg3 {[%clk 0:00:53.7]} 31... b6
{[%clk 0:00:14]} 32. g4 {[%clk 0:00:46]} 32... Bc2 {[%clk 0:00:09.8]} 33. Rc1
{[%clk 0:00:44.1]} 33... Be4 {[%clk 0:00:07.9]} 34. Nd2 {[%clk 0:00:44.4]} 34...
Bg5 {[%clk 0:00:03.2]} 35. Bxg5 {[%clk 0:00:43.6]} 35... Nxg5 {[%clk 0:00:03.1]}
36. Kf2 {[%clk 0:00:40.9]} 36... f5 {[%clk 0:00:02.6]} 37. Re1 {[%clk
0:00:36.5]} 37... Kf7 {[%clk 0:00:02.5]} 38. h4 {[%clk 0:00:35.4]} 38... Ne6
{[%clk 0:00:02.4]} 39. Nxe4 {[%clk 0:00:35.1]} 39... fxe4 {[%clk 0:00:03.2]} 40.
Rxe4 {[%clk 0:00:35.7]} 40... Nc5 {[%clk 0:00:04.1]} 41. Re3 {[%clk 0:00:34]}
41... Rd8 {[%clk 0:00:04]} 42. Re2 {[%clk 0:00:31.1]} 42... Rd1 {[%clk
0:00:03.2]} 43. Bg2 {[%clk 0:00:29.4]} 43... Ra1 {[%clk 0:00:02.8]} 44. Bxc6
{[%clk 0:00:28.9]} 44... Nd3+ {[%clk 0:00:03.3]} 45. Ke3 {[%clk 0:00:25.4]}
45... Ne5 {[%clk 0:00:03.7]} 46. Bf3 {[%clk 0:00:24.7]} 46... Rc1 {[%clk
0:00:03]} 47. Kf4 {[%clk 0:00:20.1]} 47... Nd3+ {[%clk 0:00:02.7]} 48. Kg5
{[%clk 0:00:18.7]} 48... Ne1 {[%clk 0:00:01.6]} 49. Bd5+ {[%clk 0:00:18.8]}
49... Kg7 {[%clk 0:00:02.5]} 50. Re7+ {[%clk 0:00:18.7]} 50... Kf8 {[%clk
0:00:03.4]} 51. Rf7+ {[%clk 0:00:16.4]} 51... Ke8 {[%clk 0:00:04]} 52. Kxg6
{[%clk 0:00:15.6]} 52... Nd3 {[%clk 0:00:04.9]} 53. Rf5 {[%clk 0:00:14.4]} 53...
Re1 {[%clk 0:00:04.6]} 54. h5 {[%clk 0:00:13.6]} 54... Ne5+ {[%clk 0:00:05]} 55.
Kg5 {[%clk 0:00:13.7]} 55... Nd3 {[%clk 0:00:04.9]} 56. h6 {[%clk 0:00:13.8]}
56... Ke7 {[%clk 0:00:05.3]} 57. Kg6 {[%clk 0:00:12.5]} 57... Ne5+ {[%clk
0:00:05.3]} 58. Rxe5+ {[%clk 0:00:12.8]} 58... Rxe5 {[%clk 0:00:05.1]} 59. h7
{[%clk 0:00:13.3]} 59... b5 {[%clk 0:00:02.4]} 60. h8=Q {[%clk 0:00:13.1]} 60...
bxc4 {[%clk 0:00:03.3]} 61. Qxe5+ {[%clk 0:00:12.7]} 1-0

[Event "*** Titled Tuesday Blitz"]
[Site "Chess.com"]
[Date "2021.03.16"]
[Round "6"]
[White "Das_Virus_2020"]
[Black "Aygehovit1992"]
[Result "1/2-1/2"]
[WhiteElo "2479"]
[BlackElo "2627"]
[TimeControl "180+1"]
[EndTime "11:07:28 PDT"]
[Termination "Game drawn - insufficient material"]

1. e4 {[%clk 0:02:59.6]} 1... c5 {[%clk 0:02:59.4]} 2. c3 {[%clk 0:02:59.4]}
2... g6 {[%clk 0:02:58]} 3. d4 {[%clk 0:02:59]} 3... cxd4 {[%clk 0:02:58.9]} 4.
cxd4 {[%clk 0:02:59.7]} 4... d5 {[%clk 0:02:59.4]} 5. e5 {[%clk 0:03:00]} 5...
a6 {[%clk 0:02:59]} 6. Nc3 {[%clk 0:02:59.9]} 6... Nc6 {[%clk 0:02:59.5]} 7. h3
{[%clk 0:03:00]} 7... f6 {[%clk 0:02:58]} 8. exf6 {[%clk 0:02:56.1]} 8... Nxf6
{[%clk 0:02:56.5]} 9. Nf3 {[%clk 0:02:53.2]} 9... Bg7 {[%clk 0:02:56.5]} 10. Bd3
{[%clk 0:02:41.3]} 10... Bf5 {[%clk 0:02:47]} 11. O-O {[%clk 0:02:33.2]} 11...
Bxd3 {[%clk 0:02:45.2]} 12. Qxd3 {[%clk 0:02:32.4]} 12... O-O {[%clk 0:02:43]}
13. Re1 {[%clk 0:02:27.9]} 13... Qc7 {[%clk 0:02:33.7]} 14. Bg5 {[%clk
0:02:20.4]} 14... Rad8 {[%clk 0:02:31.2]} 15. Rad1 {[%clk 0:02:02.5]} 15... b5
{[%clk 0:02:18.8]} 16. a3 {[%clk 0:01:57.7]} 16... Na5 {[%clk 0:02:11]} 17. Qe2
{[%clk 0:01:50.1]} 17... Nc4 {[%clk 0:01:06.5]} 18. Bc1 {[%clk 0:01:27.1]} 18...
Qd6 {[%clk 0:00:18.5]} 19. Qxe7 {[%clk 0:01:17.7]} 19... Qxe7 {[%clk 0:00:19.4]}
20. Rxe7 {[%clk 0:01:17.3]} 20... Rfe8 {[%clk 0:00:18.5]} 21. Rde1 {[%clk
0:00:47.6]} 21... Rxe7 {[%clk 0:00:18.3]} 22. Rxe7 {[%clk 0:00:46.8]} 22... Bf8
{[%clk 0:00:19.2]} 23. Re6 {[%clk 0:00:44]} 23... Rd6 {[%clk 0:00:19.1]} 24.
Rxd6 {[%clk 0:00:41.9]} 24... Bxd6 {[%clk 0:00:20]} 25. Kf1 {[%clk 0:00:38.6]}
25... Kf7 {[%clk 0:00:20.3]} 26. Ke2 {[%clk 0:00:38.5]} 26... Ke6 {[%clk
0:00:20.4]} 27. Kd3 {[%clk 0:00:38.4]} 27... Kd7 {[%clk 0:00:18.9]} 28. Ne1
{[%clk 0:00:29.7]} 28... Kc6 {[%clk 0:00:18.5]} 29. Nc2 {[%clk 0:00:29.7]} 29...
a5 {[%clk 0:00:18.5]} 30. b3 {[%clk 0:00:28.1]} 30... Nb6 {[%clk 0:00:18.8]} 31.
Bg5 {[%clk 0:00:21.8]} 31... Ne8 {[%clk 0:00:16.9]} 32. Bd8 {[%clk 0:00:21.6]}
32... Nc7 {[%clk 0:00:13.6]} 33. Bxc7 {[%clk 0:00:21.1]} 33... Bxc7 {[%clk
0:00:14.5]} 34. Ne3 {[%clk 0:00:19.6]} 34... Bd6 {[%clk 0:00:14.2]} 35. a4
{[%clk 0:00:19.7]} 35... bxa4 {[%clk 0:00:10.6]} 36. bxa4 {[%clk 0:00:15.8]}
36... Bb4 {[%clk 0:00:10.3]} 37. Ned1 {[%clk 0:00:15.8]} 37... Nc4 {[%clk
0:00:09.6]} 38. g3 {[%clk 0:00:15]} 38... h5 {[%clk 0:00:09]} 39. Kc2 {[%clk
0:00:14.2]} 39... Nd6 {[%clk 0:00:07.3]} 40. Ne3 {[%clk 0:00:10.8]} 40... Bxc3
{[%clk 0:00:07.4]} 41. Kxc3 {[%clk 0:00:11.1]} 41... Ne4+ {[%clk 0:00:08]} 42.
Kc2 {[%clk 0:00:08.8]} 42... Nxf2 {[%clk 0:00:08.9]} 43. h4 {[%clk 0:00:09.2]}
43... Ne4 {[%clk 0:00:09.4]} 44. Nf1 {[%clk 0:00:09]} 44... Kd6 {[%clk
0:00:07.9]} 45. Kd3 {[%clk 0:00:09.2]} 45... Ke6 {[%clk 0:00:08.5]} 46. Ke3
{[%clk 0:00:08.1]} 46... Nc3 {[%clk 0:00:08.4]} 47. Nd2 {[%clk 0:00:08.3]} 47...
Nxa4 {[%clk 0:00:08.1]} 48. Nb3 {[%clk 0:00:08.7]} 48... Kf5 {[%clk 0:00:06.7]}
49. Nxa5 {[%clk 0:00:08.3]} 49... Kg4 {[%clk 0:00:07.2]} 50. Kf2 {[%clk
0:00:08.3]} 50... Nc3 {[%clk 0:00:07.8]} 51. Nc6 {[%clk 0:00:08.1]} 51... Ne4+
{[%clk 0:00:08.1]} 52. Kg2 {[%clk 0:00:08.4]} 52... Nxg3 {[%clk 0:00:03.4]} 53.
Ne5+ {[%clk 0:00:07.1]} 53... Kxh4 {[%clk 0:00:03.8]} 54. Nxg6+ {[%clk
0:00:06.7]} 54... Kg5 {[%clk 0:00:04.2]} 55. Ne7 {[%clk 0:00:05.9]} 55... Nf5
{[%clk 0:00:04.1]} 56. Nxd5 {[%clk 0:00:05.8]} 56... Kg4 {[%clk 0:00:03.9]} 57.
Nf6+ {[%clk 0:00:05.2]} 57... Kg5 {[%clk 0:00:04.4]} 58. Nxh5 {[%clk 0:00:06.1]}
58... Kxh5 {[%clk 0:00:05.3]} 59. d5 {[%clk 0:00:06.6]} 59... Nd6 {[%clk
0:00:05.6]} 60. Kf3 {[%clk 0:00:06.3]} 60... Kg5 {[%clk 0:00:06.5]} 61. Ke3
{[%clk 0:00:06.9]} 61... Kf6 {[%clk 0:00:07.4]} 62. Kd4 {[%clk 0:00:07.7]} 62...
Kf5 {[%clk 0:00:07.6]} 63. Kc5 {[%clk 0:00:08.6]} 63... Ke5 {[%clk 0:00:08.5]}
64. Kc6 {[%clk 0:00:09.5]} 64... Ne4 {[%clk 0:00:08.4]} 65. Kd7 {[%clk
0:00:10.4]} 65... Kxd5 {[%clk 0:00:08.3]} 1/2-1/2

[Event "*** Titled Tuesday Blitz"]
[Site "Chess.com"]
[Date "2021.03.16"]
[Round "6"]
[White "Fighter008"]
[Black "XDPS"]
[Result "0-1"]
[WhiteElo "2637"]
[BlackElo "2819"]
[TimeControl "180+1"]
[EndTime "11:07:31 PDT"]
[Termination "XDPS won by resignation"]

1. e4 {[%clk 0:03:00.9]} 1... e5 {[%clk 0:02:58.8]} 2. Nf3 {[%clk 0:03:00.6]}
2... Nc6 {[%clk 0:02:58.3]} 3. Nc3 {[%clk 0:03:01.2]} 3... Nf6 {[%clk
0:02:57.7]} 4. Bb5 {[%clk 0:03:01.7]} 4... Bd6 {[%clk 0:02:55.6]} 5. d3 {[%clk
0:03:01.2]} 5... O-O {[%clk 0:02:55.4]} 6. a3 {[%clk 0:03:00.4]} 6... Re8 {[%clk
0:02:55.5]} 7. O-O {[%clk 0:02:49.5]} 7... Nd4 {[%clk 0:02:50.9]} 8. Bc4 {[%clk
0:02:44.9]} 8... c6 {[%clk 0:02:48.8]} 9. Bg5 {[%clk 0:02:35.8]} 9... Bf8 {[%clk
0:02:42.9]} 10. Ba2 {[%clk 0:02:28.8]} 10... h6 {[%clk 0:02:41.1]} 11. Bh4
{[%clk 0:02:15.8]} 11... g5 {[%clk 0:02:39.8]} 12. Bg3 {[%clk 0:02:12.2]} 12...
Nxf3+ {[%clk 0:02:39.3]} 13. Qxf3 {[%clk 0:02:13.1]} 13... d6 {[%clk 0:02:39.2]}
14. Qe3 {[%clk 0:02:07.6]} 14... Qb6 {[%clk 0:02:34.3]} 15. b4 {[%clk 0:01:59]}
15... Kg7 {[%clk 0:02:30.8]} 16. h3 {[%clk 0:01:55]} 16... Be6 {[%clk
0:02:22.2]} 17. Ne2 {[%clk 0:01:45.5]} 17... Nh5 {[%clk 0:02:20.6]} 18. c4
{[%clk 0:01:41.2]} 18... Nf4 {[%clk 0:01:51]} 19. Nc1 {[%clk 0:00:54.9]} 19...
f6 {[%clk 0:01:29.8]} 20. Kh2 {[%clk 0:00:54.6]} 20... Bf7 {[%clk 0:01:28.3]}
21. Bb1 {[%clk 0:00:47.1]} 21... d5 {[%clk 0:01:17.6]} 22. c5 {[%clk 0:00:41.5]}
22... Qc7 {[%clk 0:01:15.9]} 23. Bc2 {[%clk 0:00:25.5]} 23... d4 {[%clk
0:01:13.8]} 24. Qd2 {[%clk 0:00:24.4]} 24... h5 {[%clk 0:01:11]} 25. h4 {[%clk
0:00:23.8]} 25... Be7 {[%clk 0:01:05]} 26. Ne2 {[%clk 0:00:23.7]} 26... a5
{[%clk 0:00:54.1]} 27. f3 {[%clk 0:00:23.3]} 27... Ng6 {[%clk 0:00:47.9]} 28.
hxg5 {[%clk 0:00:17.5]} 28... fxg5 {[%clk 0:00:48]} 29. Nxd4 {[%clk 0:00:17.7]}
29... h4 {[%clk 0:00:35.5]} 30. Nf5+ {[%clk 0:00:17.9]} 30... Kf6 {[%clk
0:00:35.8]} 31. Bf2 {[%clk 0:00:17.7]} 31... Rad8 {[%clk 0:00:33.4]} 32. d4
{[%clk 0:00:17.8]} 32... exd4+ {[%clk 0:00:31.9]} 33. Kh1 {[%clk 0:00:17]} 33...
Nf4 {[%clk 0:00:09.7]} 34. Bxd4+ {[%clk 0:00:16.8]} 34... Kg6 {[%clk 0:00:10.2]}
35. e5 {[%clk 0:00:14.5]} 35... Kh5 {[%clk 0:00:09.3]} 36. Nd6 {[%clk
0:00:14.4]} 36... Be6 {[%clk 0:00:07.8]} 37. Qf2 {[%clk 0:00:10.1]} 37... Rf8
{[%clk 0:00:06.9]} 38. Be4 {[%clk 0:00:09.1]} 38... Kh6 {[%clk 0:00:06.1]} 39.
Be3 {[%clk 0:00:07.2]} 39... Nh5 {[%clk 0:00:06.2]} 40. Qxh4 {[%clk 0:00:06.9]}
40... Rf4 {[%clk 0:00:06.4]} 41. Bxf4 {[%clk 0:00:06.5]} 41... gxf4 {[%clk
0:00:07.3]} 42. Qf2 {[%clk 0:00:05.2]} 42... Ng3+ {[%clk 0:00:07.6]} 43. Kg1
{[%clk 0:00:05.4]} 43... Kg5 {[%clk 0:00:08.3]} 44. Bh7 {[%clk 0:00:03]} 44...
Bd5 {[%clk 0:00:06]} 45. Ne4+ {[%clk 0:00:03.3]} 45... Bxe4 {[%clk 0:00:06.3]}
46. fxe4 {[%clk 0:00:04.2]} 46... Qxe5 {[%clk 0:00:07.2]} 47. Qxg3+ {[%clk
0:00:03.8]} 47... fxg3 {[%clk 0:00:06.3]} 48. Rf5+ {[%clk 0:00:04.7]} 48... Qxf5
{[%clk 0:00:06.2]} 49. Bxf5 {[%clk 0:00:05.6]} 49... Bf6 {[%clk 0:00:06.6]} 50.
Rf1 {[%clk 0:00:04.8]} 50... Bd4+ {[%clk 0:00:06.9]} 51. Kh1 {[%clk 0:00:04.9]}
51... Bf2 {[%clk 0:00:06]} 52. Bh3 {[%clk 0:00:04.7]} 52... Kf4 {[%clk 0:00:06]}
53. e5 {[%clk 0:00:04.3]} 53... Kxe5 {[%clk 0:00:06.3]} 54. Rb1 {[%clk
0:00:04.6]} 54... a4 {[%clk 0:00:06.1]} 55. b5 {[%clk 0:00:04.8]} 55... cxb5
{[%clk 0:00:06.4]} 56. Bg4 {[%clk 0:00:05.6]} 56... Kf4 {[%clk 0:00:05.8]} 57.
Bh3 {[%clk 0:00:04.2]} 57... Ke3 {[%clk 0:00:05.8]} 58. Bg4 {[%clk 0:00:03.9]}
58... Kf4 {[%clk 0:00:05.7]} 59. Bh3 {[%clk 0:00:04.2]} 59... Rd5 {[%clk
0:00:06.1]} 60. Bg4 {[%clk 0:00:03.2]} 60... Kxg4 {[%clk 0:00:05.8]} 0-1

[Event "*** Titled Tuesday Blitz"]
[Site "Chess.com"]
[Date "2021.03.16"]
[Round "6"]
[White "Joker_Gumble"]
[Black "JiiHart"]
[Result "1-0"]
[WhiteElo "2332"]
[BlackElo "2067"]
[TimeControl "180+1"]
[EndTime "11:07:31 PDT"]
[Termination "Joker_Gumble won on time"]

1. d4 {[%clk 0:03:00.9]} 1... Nf6 {[%clk 0:02:58.9]} 2. c4 {[%clk 0:03:01.4]}
2... e6 {[%clk 0:02:59]} 3. Nf3 {[%clk 0:03:01.1]} 3... c5 {[%clk 0:02:58.8]} 4.
d5 {[%clk 0:03:01]} 4... exd5 {[%clk 0:02:59.2]} 5. cxd5 {[%clk 0:03:01.9]} 5...
d6 {[%clk 0:02:59.7]} 6. Nc3 {[%clk 0:03:02.3]} 6... g6 {[%clk 0:02:59.9]} 7. e4
{[%clk 0:03:02]} 7... Bg4 {[%clk 0:02:53.5]} 8. Be2 {[%clk 0:02:48.4]} 8... Bg7
{[%clk 0:02:52.2]} 9. a4 {[%clk 0:02:48.3]} 9... O-O {[%clk 0:02:51.2]} 10. O-O
{[%clk 0:02:47.3]} 10... Re8 {[%clk 0:02:49]} 11. h3 {[%clk 0:02:47.2]} 11...
Bxf3 {[%clk 0:02:48.8]} 12. Bxf3 {[%clk 0:02:48.1]} 12... Nbd7 {[%clk 0:02:47]}
13. g4 {[%clk 0:02:46.9]} 13... Ne5 {[%clk 0:02:42.5]} 14. Bg2 {[%clk
0:02:46.4]} 14... Rb8 {[%clk 0:02:29.9]} 15. f4 {[%clk 0:02:45.2]} 15... Nc4
{[%clk 0:01:55.4]} 16. Qd3 {[%clk 0:02:37.9]} 16... Na5 {[%clk 0:01:53.7]} 17.
Be3 {[%clk 0:02:02.3]} 17... c4 {[%clk 0:01:36.2]} 18. Qc2 {[%clk 0:01:57.1]}
18... a6 {[%clk 0:01:34.7]} 19. Bd4 {[%clk 0:01:51.9]} 19... Nb3 {[%clk
0:01:15.3]} 20. Bf2 {[%clk 0:01:38.8]} 20... Nxa1 {[%clk 0:01:14.3]} 21. Rxa1
{[%clk 0:01:39.7]} 21... b5 {[%clk 0:01:14]} 22. axb5 {[%clk 0:01:37.8]} 22...
axb5 {[%clk 0:01:14.9]} 23. Ra7 {[%clk 0:01:32]} 23... b4 {[%clk 0:01:13.1]} 24.
Na4 {[%clk 0:01:27]} 24... c3 {[%clk 0:01:00.3]} 25. bxc3 {[%clk 0:01:17.8]}
25... bxc3 {[%clk 0:00:59.7]} 26. Nxc3 {[%clk 0:01:10.8]} 26... Rc8 {[%clk
0:00:52.1]} 27. Qb3 {[%clk 0:01:07]} 27... Nxg4 {[%clk 0:00:39.7]} 28. hxg4
{[%clk 0:00:40.2]} 28... Rxc3 {[%clk 0:00:39]} 29. Qb7 {[%clk 0:00:39.2]} 29...
Rf8 {[%clk 0:00:38.8]} 30. g5 {[%clk 0:00:32.6]} 30... Qc8 {[%clk 0:00:34.2]}
31. Qd7 {[%clk 0:00:19.2]} 31... Qc4 {[%clk 0:00:26.1]} 32. Qxd6 {[%clk
0:00:07.1]} 32... Qe2 {[%clk 0:00:24.7]} 33. Qb6 {[%clk 0:00:03.1]} 33... Rc1+
{[%clk 0:00:21.6]} 34. Kh2 {[%clk 0:00:03.4]} 34... Rc2 {[%clk 0:00:18.4]} 35.
Kg1 {[%clk 0:00:02.8]} 35... Rc1+ {[%clk 0:00:18.3]} 36. Kh2 {[%clk 0:00:02.7]}
36... Qh5+ {[%clk 0:00:15.5]} 37. Kg3 {[%clk 0:00:02.6]} 37... Rc3+ {[%clk
0:00:14.3]} 38. Be3 {[%clk 0:00:03.2]} 38... Qe2 {[%clk 0:00:13.2]} 39. Bf3
{[%clk 0:00:02.5]} 39... Qxe3 {[%clk 0:00:10.1]} 40. Qxe3 {[%clk 0:00:03.4]}
40... Rxe3 {[%clk 0:00:10.3]} 41. e5 {[%clk 0:00:04.3]} 41... Rd3 {[%clk
0:00:09.4]} 42. d6 {[%clk 0:00:04.9]} 42... Rd8 {[%clk 0:00:09.4]} 43. Kf2
{[%clk 0:00:04.6]} 43... Bf8 {[%clk 0:00:09.1]} 44. Rb7 {[%clk 0:00:04.1]} 44...
Bxd6 {[%clk 0:00:07.9]} 45. exd6 {[%clk 0:00:05]} 45... R3xd6 {[%clk 0:00:08.1]}
46. Kg3 {[%clk 0:00:05]} 46... Kg7 {[%clk 0:00:08.2]} 47. Kg4 {[%clk 0:00:05.2]}
47... R6d7 {[%clk 0:00:08.2]} 48. Rb6 {[%clk 0:00:04.9]} 48... h5+ {[%clk
0:00:08.2]} 49. gxh6+ {[%clk 0:00:04.8]} 49... Kxh6 {[%clk 0:00:08.8]} 50. f5
{[%clk 0:00:03.9]} 50... Kg7 {[%clk 0:00:07.3]} 51. Be4 {[%clk 0:00:02.9]} 51...
gxf5+ {[%clk 0:00:06.8]} 52. Kxf5 {[%clk 0:00:02.7]} 52... Rd6 {[%clk
0:00:06.7]} 53. Rb7 {[%clk 0:00:02.4]} 53... R8d7 {[%clk 0:00:06.6]} 54. Rb1
{[%clk 0:00:03.3]} 54... Rf6+ {[%clk 0:00:05.7]} 55. Kg5 {[%clk 0:00:02.8]}
55... Rfd6 {[%clk 0:00:02.7]} 56. Bf5 {[%clk 0:00:02.9]} 56... Re7 {[%clk
0:00:01.7]} 57. Rg1 {[%clk 0:00:03.4]} 57... Kf8 {[%clk 0:00:01.4]} 58. Kf4
{[%clk 0:00:04.3]} 58... Rd4+ {[%clk 0:00:01.2]} 59. Kg5 {[%clk 0:00:03.8]}
59... Rb4 {[%clk 0:00:01.2]} 60. Kf6 {[%clk 0:00:04]} 1-0